[Event "26th Hit Open-A 2022"]
[Site "Nova Gorica"]
[Date "2022.09.18"]
[Round "4.22"]
[White "Karlusic, Luka"]
[Black "Pirs, Matjaz"]
[Result "1-0"]
[ECO "A52"]
[WhiteElo "2215"]
[BlackElo "2203"]
[Annotator "TA"]
[PlyCount "35"]
[EventDate "2022.09.16"]
[EventType "swiss"]
[EventCountry "SLO"]
[SourceTitle "playchess.com"]
[Source "ChessBase"]
[SourceQuality "1"]
[TimeControl "5400+30"]

{[%evp 22,35,33,16,56,66,99,59,120,131,244,224,343,351,577,592]} 1. d4 {[%emt 0:00:07]} Nf6 {[%emt 0:00:20]} 2. c4 {[%emt 0:00:13]} e5 {[%emt 0:01:14]} 3. dxe5 {[%emt 0:00:37]} Ng4 {[%emt 0:00:14]} 4. Bf4 {[%emt 0:00:14]} Nc6 {[%emt 0:00:08]} 5. Nf3 {[%emt 0:00:15]} Bb4+ {[%emt 0:00:19]} 6. Nc3 {[%emt 0:00:17]} Qe7 {[%emt 0:04:45]} 7. Qd5 {[%emt 0:00:25]} f6 {[%emt 0:11:49]} 8. exf6 {[%emt 0:02:30]} Bxc3+ {[%emt 0:09:01]} 9. bxc3 {[%emt 0:00:20]} Nxf6 {[%emt 0:01:49]} 10. Qd3 {[%emt 0:00:57]} d6 {[%emt 0:00:25]} 11. g3 {[%emt 0:00:51]} O-O {[%emt 0:00:19]} 12. Bg2 {[%emt 0:00:13]} Kh8 {[%emt 0:21:53] A52: Budapest Gambit.} 13. O-O {[%emt 0:06:53]} Nh5 {[%emt 0:13:56]} 14. Be3 {[%emt 0:38:06][%cal Oc4c5]} ({Much worse is} 14. Ng5 $6 Bf5 15. e4 Bg6 $11) 14... Be6 {[%emt 0:22:00]} (14... Nf6 $14) 15. c5 $16 {[%emt 0:08:00] [#]} Rad8 $146 {[%emt 0:05:26]} (15... d5 $16) ({Predecessor:} 15... d5 16. Ng5 Bg8 17. Nf3 Rae8 18. Qb5 Nd8 19. Qa4 a6 20. Qh4 Nf6 21. Bd4 c6 {1-0 (56) Marches Rios,J (2185)-Mas Recorda,P (2160) Spain 1993}) 16. Qb5 $18 {[%emt 0:02:50] [#] aiming for cxd6.} ({Don't take} 16. Ng5 $6 Bg8 $16) 16... Bc8 {[%emt 0:01:08]} (16... Qe8 {was worth a try.} 17. Qxb7 Bc8) 17. cxd6 {[%emt 0:00:13]} cxd6 {[%emt 0:00:15]} (17... Qe8 {is a better defense.} 18. dxc7 Rd7) 18. Qxh5 {[%emt 0:01:02] Black got outplayed after the opening.  Weighted Error Value: White=0.08 (flawless) /Black=1.06} 1-0

[Event "26th Hit Open-A 2022"]
[Site "Nova Gorica"]
[Date "2022.09.18"]
[Round "4.23"]
[White "Petrovcic, Cvetko"]
[Black "Zubova, Mariya"]
[Result "0-1"]
[ECO "C54"]
[WhiteElo "1602"]
[BlackElo "2214"]
[Annotator "TA"]
[PlyCount "66"]
[EventDate "2022.09.16"]
[EventType "swiss"]
[EventCountry "SLO"]
[SourceTitle "playchess.com"]
[Source "ChessBase"]
[SourceQuality "1"]
[TimeControl "5400+30"]

{[%evp 18,66,-52,-88,-95,-97,-75,-77,-95,-68,-69,-85,25,-332,-344,-354,-60,-56,-56,-56,-56,-56,-56,-56,-56,-56,-56,-56,-56,-56,-47,-47,-25,-25,-25,-42,-37,-56,-68,-232,-218,-253,-246,-371,-357,-1322,-1248,-29989,-29990,-29991,-29992]} 1. e4 {[%emt 0:00:30]} e5 {[%emt 0:01:33]} 2. Nf3 {[%emt 0:00:08]} Nc6 {[%emt 0:00:16]} 3. Bc4 {[%emt 0:00:16]} Bc5 {[%emt 0:00:23]} 4. c3 {[%emt 0:01:11]} Nf6 {[%emt 0:00:17]} 5. d4 {[%emt 0:01:30]} exd4 {[%emt 0:00:06]} 6. cxd4 {[%emt 0:03:12]} Bb4+ {[%emt 0:00:07]} 7. Nc3 {[%emt 0:00:50]} Nxe4 {[%emt 0:00:21]} 8. O-O {[%emt 0:00:41]} Bxc3 {[%emt 0:00:56]} 9. bxc3 {[%emt 0:01:20]} d5 {[%emt 0:00:38]} 10. Ba3 {[%emt 0:05:02][%cal Of1e1]} dxc4 {[%emt 0:04:08] Black is more active. C54: Giuoco Piano: 4 c3 Nf6, main lines with 5 d4 and 5 d3.} 11. Re1 {[%emt 0:00:13]} f5 {[%emt 0:01:34] [#] White must now prevent ...Be6.} 12. Nd2 {[%emt 0:00:34]} Be6 {[%emt 0:17:28] Black is better.} 13. Nxe4 {[%emt 0:00:14]} fxe4 {[%emt 0:00:05]} 14. Rxe4 {[%emt 0:00:22] [#]} Qd5 {[%emt 0:01:40]} ({Black should try} 14... Qd7 $1 $17 {...0-0-0 is the strong threat.} 15. d5 O-O-O 16. Rxe6 Qxd5) 15. Qe2 $2 {[%emt 0:02:05][%mdl 8192]} (15. Qg4 $1 $11 Kf7 16. Qf3+ Kg8 17. Rae1) 15... Kd7 $19 {[%emt 0:01:12] [#]} 16. Rd1 $146 {[%emt 0:03:12][%cal Oe4e5]} ({Predecessor:} 16. Re1 Rae8 17. Bc1 h5 18. Bf4 g5 19. Be5 Bf5 20. Bxh8 Rxe4 21. Qd2 Rxe1+ 22. Qxe1 g4 23. Bg7 Ne7 24. Bh6 Be4 25. g3 Qf5 26. Bf4 Nd5 {0-1 (26) Dunn,J (1618)-Cooper,R (2009) ICCF email 2016}) 16... Rae8 $2 {[%emt 0:00:51]} (16... Bf5 $19 17. Re3 Rae8) 17. Re5 $15 {[%emt 0:00:35]} Nxe5 {[%emt 0:03:04]} 18. dxe5 {[%emt 0:00:22]} Qxd1+ {[%emt 0:00:38]} 19. Qxd1+ {[%emt 0:00:16]} Kc8 {[%emt 0:00:02]} 20. Bc5 {[%emt 0:00:35]} Rd8 {[%emt 0:02:09][%cal Rd8d1]} 21. Qa4 {[%emt 0:00:58]} b6 {[%emt 0:01:49]} 22. Bd4 {[%emt 0:00:29]} Kb7 {[%emt 0:01:26]} 23. h3 {[%emt 0:00:51]} a6 {[%emt 0:02:26]} 24. Qc2 {[%emt 0:02:10]} c5 {[%emt 0:01:38]} 25. Be3 {[%emt 0:00:26]} Rd3 {[%emt 0:01:07]} 26. Qb2 {[%emt 0:00:32] Strongly threatening Bxc5.} Rc8 {[%emt 0:12:00]} 27. a4 {[%emt 0:04:39]} a5 {[%emt 0:00:00]} 28. g4 $2 {[%emt 0:02:06]} ({White should play} 28. Qe2 $1 $15) 28... Bd7 $19 {[%emt 0:00:23]} 29. Qc2 {[%emt 0:00:32]} Re8 {[%emt 0:00:57]} 30. Bf4 {[%emt 0:00:57]} (30. Qa2 {might work better.} Rxc3 31. Kh2) 30... Rxh3 {[%emt 0:00:46] Threatens to win with ...Bc6.} 31. Bg3 $2 {[%emt 0:00:45]} (31. Kg2 Rd3 32. g5) 31... Bc6 {[%emt 0:01:02][%csl Gc6][%cal Rh3h1]} 32. Kf1 {[%emt 0:01:41]} Bf3 {[%emt 0:00:14][%cal Rh3h1]} 33. Ke1 {[%emt 0:03:37]} Rd8 {[%emt 0:00:05] Weighted Error Value: White=0.79/Black=0.24 (precise)} 0-1

[Event "26th Hit Open-A 2022"]
[Site "Nova Gorica"]
[Date "2022.09.18"]
[Round "4.24"]
[White "Rakesh Kumar Jena"]
[Black "Goroshkova, Liudmila"]
[Result "1-0"]
[ECO "B07"]
[WhiteElo "2321"]
[BlackElo "1961"]
[Annotator "ChessBase"]
[PlyCount "54"]
[EventDate "2022.09.16"]
[EventType "swiss"]
[EventCountry "SLO"]
[SourceTitle "playchess.com"]
[Source "ChessBase"]
[SourceQuality "1"]
[TimeControl "5400+30"]

1. d4 {[%emt 0:00:04]} Nf6 {[%emt 0:00:47]} 2. Bf4 {[%emt 0:00:12]} d6 {[%emt 0:01:29]} 3. Nc3 {[%emt 0:00:42]} c6 {[%emt 0:00:21]} 4. e4 {[%emt 0:00:39]} Qa5 {[%emt 0:04:13]} 5. Bd3 {[%emt 0:07:14]} e5 {[%emt 0:02:38]} 6. dxe5 {[%emt 0:01:14]} dxe5 {[%emt 0:00:08]} 7. Bd2 {[%emt 0:02:32]} Qc7 {[%emt 0:00:57]} 8. Nf3 {[%emt 0:01:12]} Nbd7 {[%emt 0:06:07]} 9. Qe2 {[%emt 0:11:47]} Be7 {[%emt 0:01:55]} 10. g4 {[%emt 0:05:29]} Nc5 {[%emt 0:03:37]} 11. h3 {[%emt 0:03:18]} Nfd7 {[%emt 0:05:13]} 12. O-O-O {[%emt 0:16:32]} a5 {[%emt 0:10:09]} 13. Bg5 {[%emt 0:06:54]} f6 {[%emt 0:05:26]} 14. Be3 {[%emt 0:01:46]} a4 {[%emt 0:03:28]} 15. g5 {[%emt 0:10:22]} a3 {[%emt 0:03:04]} 16. b4 {[%emt 0:02:28]} Ne6 {[%emt 0:05:37]} 17. Bc4 {[%emt 0:03:11]} Nf4 {[%emt 0:04:48]} 18. Bxf4 {[%emt 0:00:26]} exf4 {[%emt 0:00:06]} 19. gxf6 {[%emt 0:00:39]} gxf6 {[%emt 0:10:34]} 20. e5 {[%emt 0:03:53]} Nxe5 {[%emt 0:03:26]} 21. Rhe1 {[%emt 0:01:19]} Bf5 {[%emt 0:02:22]} 22. Nxe5 {[%emt 0:00:33]} fxe5 {[%emt 0:00:39]} 23. Qxe5 {[%emt 0:00:05]} Qxe5 {[%emt 0:00:24]} 24. Rxe5 {[%emt 0:00:06]} b5 {[%emt 0:00:50]} 25. Nxb5 {[%emt 0:00:17]} cxb5 {[%emt 0:00:26]} 26. Bxb5+ {[%emt 0:00:05]} Kf7 {[%emt 0:00:12]} 27. Rxf5+ {[%emt 0:00:04]} Ke6 {[%emt 0:00:21]} 1-0

[Event "26th Hit Open-A 2022"]
[Site "Nova Gorica"]
[Date "2022.09.18"]
[Round "4.25"]
[White "Teo, Hong Ming"]
[Black "Beliavsky, Alexander G"]
[Result "1/2-1/2"]
[ECO "E52"]
[WhiteElo "2013"]
[BlackElo "2505"]
[Annotator "ChessBase"]
[PlyCount "141"]
[EventDate "2022.09.16"]
[EventType "swiss"]
[EventCountry "SLO"]
[SourceTitle "playchess.com"]
[Source "ChessBase"]
[SourceQuality "1"]
[TimeControl "5400+30"]

1. d4 {[%emt 0:00:37]} Nf6 {[%emt 0:00:08]} 2. c4 {[%emt 0:00:11]} e6 {[%emt 0:00:04]} 3. Nc3 {[%emt 0:00:23]} Bb4 {[%emt 0:00:08]} 4. e3 {[%emt 0:00:08]} O-O {[%emt 0:00:22]} 5. Bd2 {[%emt 0:00:07]} b6 {[%emt 0:03:11]} 6. Nf3 {[%emt 0:00:28]} d5 {[%emt 0:01:50]} 7. cxd5 {[%emt 0:08:08]} exd5 {[%emt 0:00:05]} 8. Bd3 {[%emt 0:02:53]} Bb7 {[%emt 0:00:14]} 9. Rc1 {[%emt 0:00:25]} a6 {[%emt 0:04:54]} 10. Ne5 {[%emt 0:01:01]} Bd6 {[%emt 0:01:27]} 11. f4 {[%emt 0:00:08]} c5 {[%emt 0:00:19]} 12. Qf3 {[%emt 0:03:01]} Nc6 {[%emt 0:00:52]} 13. Qh3 {[%emt 0:03:06]} g6 {[%emt 0:05:02]} 14. Ne2 {[%emt 0:09:27]} Ne4 {[%emt 0:01:52]} 15. Bxe4 {[%emt 0:11:00]} dxe4 {[%emt 0:00:06]} 16. Nxc6 {[%emt 0:08:43]} Bxc6 {[%emt 0:00:09]} 17. dxc5 {[%emt 0:01:10]} Bxc5 {[%emt 0:04:50]} 18. b4 {[%emt 0:05:51]} Bd7 {[%emt 0:00:05]} 19. Qh6 {[%emt 0:00:20]} Be7 {[%emt 0:00:57]} 20. Bc3 {[%emt 0:03:24]} f6 {[%emt 0:00:49]} 21. Nd4 {[%emt 0:07:38]} Rf7 {[%emt 0:08:30]} 22. O-O {[%emt 0:04:42]} f5 {[%emt 0:07:16]} 23. Rfd1 {[%emt 0:03:52]} Qe8 {[%emt 0:03:20]} 24. g3 {[%emt 0:10:43]} Ba4 {[%emt 0:03:16]} 25. Rf1 {[%emt 0:04:54]} Bf8 {[%emt 0:05:47]} 26. Qh3 {[%emt 0:01:06]} Rc8 {[%emt 0:00:55]} 27. a3 {[%emt 0:02:55]} Rfc7 {[%emt 0:04:03]} 28. Bb2 {[%emt 0:00:46]} Rxc1 {[%emt 0:05:28]} 29. Rxc1 {[%emt 0:00:09]} Rxc1+ {[%emt 0:00:48]} 30. Bxc1 {[%emt 0:00:02]} Qc8 {[%emt 0:00:51]} 31. Bb2 {[%emt 0:00:58]} Bc2 {[%emt 0:07:45]} 32. Qf1 {[%emt 0:02:33]} Bd3 {[%emt 0:00:09]} 33. Qc1 {[%emt 0:01:00]} Qxc1+ {[%emt 0:01:35]} 34. Bxc1 {[%emt 0:00:02]} Kf7 {[%emt 0:00:18]} 35. Kf2 {[%emt 0:00:57]} Ke7 {[%emt 0:01:02]} 36. Nc6+ {[%emt 0:01:40]} Ke6 {[%emt 0:05:52]} 37. Bd2 {[%emt 0:00:36]} Kd5 {[%emt 0:01:40]} 38. Ne5 {[%emt 0:00:15]} Be7 {[%emt 0:00:47]} 39. h4 {[%emt 0:01:47]} Bb5 {[%emt 0:03:06]} 40. Bc3 {[%emt 0:00:23]} Be8 {[%emt 0:00:09]} 41. Bd4 {[%emt 0:00:14]} Bd8 {[%emt 0:00:26]} 42. Ke2 {[%emt 0:00:27]} a5 {[%emt 0:00:59]} 43. Kd2 {[%emt 0:01:37]} a4 {[%emt 0:00:56]} 44. Kc3 {[%emt 0:00:54]} h6 {[%emt 0:00:22]} 45. Kd2 {[%emt 0:00:14]} g5 {[%emt 0:00:24]} 46. hxg5 {[%emt 0:00:18]} hxg5 {[%emt 0:00:04]} 47. Kc3 {[%emt 0:01:04]} Bc7 {[%emt 0:04:07]} 48. Nc4 {[%emt 0:01:06]} b5 {[%emt 0:04:18]} 49. Na5 {[%emt 0:00:16]} Bd8 {[%emt 0:02:21]} 50. Nb7 {[%emt 0:00:06]} gxf4 {[%emt 0:01:12]} 51. gxf4 {[%emt 0:00:06]} Bh4 {[%emt 0:00:18]} 52. Kd2 {[%emt 0:01:03]} Bc6 {[%emt 0:02:53]} 53. Nc5 {[%emt 0:00:06]} Kc4 {[%emt 0:00:33]} 54. Bg7 {[%emt 0:01:17]} Be7 {[%emt 0:00:16]} 55. Kc2 {[%emt 0:00:50]} Bh4 {[%emt 0:02:19]} 56. Kd2 {[%emt 0:00:07]} Be8 {[%emt 0:00:35]} 57. Be5 {[%emt 0:00:25]} Bh5 {[%emt 0:00:36]} 58. Bg7 {[%emt 0:00:24]} Be7 {[%emt 0:00:26]} 59. Kc2 {[%emt 0:00:58]} Be2 {[%emt 0:00:37]} 60. Kb2 {[%emt 0:00:36]} Bd1 {[%emt 0:01:37]} 61. Bd4 {[%emt 0:00:24]} Bb3 {[%emt 0:02:07]} 62. Bg7 {[%emt 0:00:21]} Bh4 {[%emt 0:01:03]} 63. Bh8 {[%emt 0:00:50]} Bf2 {[%emt 0:01:10]} 64. Bd4 {[%emt 0:00:05]} Bd1 {[%emt 0:00:58]} 65. Kc1 {[%emt 0:00:12]} Be2 {[%emt 0:00:38]} 66. Kd2 {[%emt 0:00:54]} Bd3 {[%emt 0:00:18]} 67. Bf6 {[%emt 0:00:21]} Bg3 {[%emt 0:00:17]} 68. Be7 {[%emt 0:00:32]} Bf2 {[%emt 0:00:42]} 69. Bf6 {[%emt 0:00:10]} Bb1 {[%emt 0:00:51]} 70. Be7 {[%emt 0:00:22]} Bd3 {[%emt 0:00:26]} 71. Bf6 {[%emt 0:00:09]} 1/2-1/2

[Event "26th Hit Open-A 2022"]
[Site "Nova Gorica"]
[Date "2022.09.18"]
[Round "4.26"]
[White "Kepplinger, Lukas"]
[Black "Goroshkov, Maksym"]
[Result "1/2-1/2"]
[ECO "D00"]
[WhiteElo "1994"]
[BlackElo "2315"]
[Annotator "ChessBase"]
[PlyCount "40"]
[EventDate "2022.09.16"]
[EventType "swiss"]
[EventCountry "SLO"]
[SourceTitle "playchess.com"]
[Source "ChessBase"]
[SourceQuality "1"]
[TimeControl "5400+30"]

1. d4 {[%emt 0:00:02]} Nf6 {[%emt 0:00:11]} 2. Bg5 {[%emt 0:00:11]} d5 {[%emt 0:01:36]} 3. Bxf6 {[%emt 0:03:30]} exf6 {[%emt 0:00:24]} 4. e3 {[%emt 0:00:11]} c6 {[%emt 0:00:19]} 5. Nf3 {[%emt 0:00:33]} Bg4 {[%emt 0:00:38]} 6. Be2 {[%emt 0:00:25]} Nd7 {[%emt 0:00:34]} 7. O-O {[%emt 0:01:13]} Bd6 {[%emt 0:00:29]} 8. Nbd2 {[%emt 0:00:58]} f5 {[%emt 0:01:49]} 9. h3 {[%emt 0:00:37]} Bxf3 {[%emt 0:00:40]} 10. Nxf3 {[%emt 0:00:39]} g5 {[%emt 0:01:37]} 11. Bd3 {[%emt 0:47:07]} g4 {[%emt 0:16:53]} 12. Ne5 {[%emt 0:00:47]} gxh3 {[%emt 0:01:13]} 13. g3 {[%emt 0:07:13]} Nxe5 {[%emt 0:02:59]} 14. dxe5 {[%emt 0:00:08]} Bxe5 {[%emt 0:00:07]} 15. Qh5 {[%emt 0:00:46]} Qf6 {[%emt 0:01:46]} 16. c3 {[%emt 0:00:50]} O-O-O {[%emt 0:02:04]} 17. Qxf5+ {[%emt 0:05:36]} Kb8 {[%emt 0:00:15]} 18. f4 {[%emt 0:00:57]} Qxf5 {[%emt 0:00:26]} 19. Bxf5 {[%emt 0:00:10]} Bc7 {[%emt 0:00:05]} 20. Kf2 {[%emt 0:00:41]} h5 {[%emt 0:01:34]} 1/2-1/2

[Event "26th Hit Open-A 2022"]
[Site "Nova Gorica"]
[Date "2022.09.18"]
[Round "4.27"]
[White "Both, Aaron"]
[Black "Marn, Jan"]
[Result "0-1"]
[ECO "C47"]
[WhiteElo "1963"]
[BlackElo "2307"]
[Annotator "ChessBase"]
[PlyCount "68"]
[EventDate "2022.09.16"]
[EventType "swiss"]
[EventCountry "SLO"]
[SourceTitle "playchess.com"]
[Source "ChessBase"]
[SourceQuality "1"]
[TimeControl "5400+30"]

1. e4 {[%emt 0:01:39]} e5 {[%emt 0:00:10]} 2. Nf3 {[%emt 0:00:08]} Nc6 {[%emt 0:00:04]} 3. Nc3 {[%emt 0:00:11]} Nf6 {[%emt 0:00:09]} 4. g3 {[%emt 0:00:20]} Bc5 {[%emt 0:01:32]} 5. Bg2 {[%emt 0:00:17]} d6 {[%emt 0:00:07]} 6. O-O {[%emt 0:03:34]} h5 {[%emt 0:02:48]} 7. d3 {[%emt 0:01:39]} Nd4 {[%emt 0:00:07]} 8. Bg5 {[%emt 0:01:26]} Bg4 {[%emt 0:06:11]} 9. Na4 {[%emt 0:07:16]} Ne6 {[%emt 0:06:26]} 10. Bd2 {[%emt 0:10:11]} h4 {[%emt 0:01:15]} 11. Nxc5 {[%emt 0:00:53]} dxc5 {[%emt 0:00:58]} 12. h3 {[%emt 0:03:04]} Bxf3 {[%emt 0:00:09]} 13. Qxf3 {[%emt 0:00:38]} Qd7 {[%emt 0:03:38]} 14. g4 {[%emt 0:03:37]} O-O-O {[%emt 0:02:01]} 15. Qf5 {[%emt 0:01:32]} Qd6 {[%emt 0:13:53]} 16. Bc3 {[%emt 0:07:02]} Nd7 {[%emt 0:00:45]} 17. a3 {[%emt 0:02:56]} g6 {[%emt 0:02:08]} 18. Qf3 {[%emt 0:03:00]} Nf4 {[%emt 0:02:11]} 19. b4 {[%emt 0:01:46]} g5 {[%emt 0:00:36]} 20. Rfd1 {[%emt 0:03:33]} Nb6 21. bxc5 {[%emt 0:00:00]} Qxc5 {[%emt 0:04:58]} 22. Bb4 {[%emt 0:03:49]} Qxc2 {[%emt 0:03:27]} 23. Rd2 {[%emt 0:02:24]} Qxd3 {[%emt 0:00:41]} 24. Qd1 {[%emt 0:05:53]} Qc4 {[%emt 0:00:18]} 25. Rc1 {[%emt 0:00:30]} Rxd2 {[%emt 0:00:30]} 26. Bxd2 {[%emt 0:04:12]} Ne2+ {[%emt 0:00:00]} 27. Kh2 {[%emt 0:00:08]} Nxc1 {[%emt 0:00:00]} 28. Bxc1 {[%emt 0:00:19]} Rd8 {[%emt 0:00:41]} 29. Qxd8+ {[%emt 0:01:36]} Kxd8 {[%emt 0:00:08]} 30. Bxg5+ {[%emt 0:00:30]} Ke8 {[%emt 0:00:30]} 31. Bxh4 {[%emt 0:00:30]} Qe2 {[%emt 0:00:30]} 32. Kg3 {[%emt 0:00:00]} c5 {[%emt 0:01:03]} 33. Bf3 {[%emt 0:00:02]} Qd2 {[%emt 0:00:30]} 34. Bf6 {[%emt 0:00:30]} Qf4+ {[%emt 0:00:30]} 0-1

[Event "26th Hit Open-A 2022"]
[Site "Nova Gorica"]
[Date "2022.09.18"]
[Round "4.28"]
[White "Mostbauer, Florian"]
[Black "Krivenko, Dion"]
[Result "1/2-1/2"]
[ECO "A49"]
[WhiteElo "2295"]
[BlackElo "2113"]
[Annotator "ChessBase"]
[PlyCount "59"]
[EventDate "2022.09.16"]
[EventType "swiss"]
[EventCountry "SLO"]
[SourceTitle "playchess.com"]
[Source "ChessBase"]
[SourceQuality "1"]
[TimeControl "5400+30"]

1. d4 {[%emt 0:00:04]} Nf6 {[%emt 0:00:23]} 2. Nf3 {[%emt 0:00:06]} g6 {[%emt 0:00:07]} 3. g3 {[%emt 0:00:38]} Bg7 {[%emt 0:00:09]} 4. Bg2 {[%emt 0:00:08]} O-O {[%emt 0:00:06]} 5. O-O {[%emt 0:00:20]} d6 {[%emt 0:00:07]} 6. a4 {[%emt 0:01:39]} Nbd7 {[%emt 0:00:42]} 7. a5 {[%emt 0:00:20]} a6 {[%emt 0:01:40]} 8. c4 {[%emt 0:00:50]} c5 {[%emt 0:03:21]} 9. Nc3 {[%emt 0:08:14]} Rb8 {[%emt 0:03:15]} 10. dxc5 {[%emt 0:05:50]} Nxc5 {[%emt 0:02:00]} 11. Nd4 {[%emt 0:01:13]} e5 {[%emt 0:10:07]} 12. Nb3 {[%emt 0:01:24]} b6 {[%emt 0:05:35]} 13. Bg5 {[%emt 0:11:53]} Be6 {[%emt 0:08:52]} 14. axb6 {[%emt 0:12:54]} Nxb3 {[%emt 0:09:14]} 15. Qxb3 {[%emt 0:03:38]} Qxb6 {[%emt 0:05:36]} 16. Qxb6 {[%emt 0:00:48]} Rxb6 {[%emt 0:00:01]} 17. Bxf6 {[%emt 0:00:09]} Bxf6 {[%emt 0:00:04]} 18. Nd5 {[%emt 0:00:08]} Bxd5 {[%emt 0:00:47]} 19. Bxd5 {[%emt 0:00:08]} e4 {[%emt 0:06:19]} 20. Bxe4 {[%emt 0:05:42]} Bxb2 {[%emt 0:01:38]} 21. Ra2 {[%emt 0:01:30]} Re8 {[%emt 0:04:52]} 22. Bd3 {[%emt 0:05:28]} Bd4 {[%emt 0:04:55]} 23. e3 {[%emt 0:09:57]} Bc5 {[%emt 0:00:54]} 24. Rfa1 {[%emt 0:01:14]} Ra8 {[%emt 0:00:38]} 25. Bc2 {[%emt 0:01:02]} Bb4 {[%emt 0:00:58]} 26. Kf1 {[%emt 0:04:40]} a5 {[%emt 0:01:11]} 27. Ba4 {[%emt 0:01:52]} Rc8 {[%emt 0:00:53]} 28. Rc2 {[%emt 0:00:33]} Kg7 {[%emt 0:01:32]} 29. Ke2 {[%emt 0:00:26]} Rc5 {[%emt 0:00:51]} 30. Rd1 {[%emt 0:00:59]} 1/2-1/2

[Event "26th Hit Open-A 2022"]
[Site "Nova Gorica"]
[Date "2022.09.18"]
[Round "4.29"]
[White "Vah, Denis"]
[Black "Stevanic, David"]
[Result "0-1"]
[ECO "D34"]
[WhiteElo "1988"]
[BlackElo "2261"]
[Annotator "ChessBase"]
[PlyCount "120"]
[EventDate "2022.09.16"]
[EventType "swiss"]
[EventCountry "SLO"]
[SourceTitle "playchess.com"]
[Source "ChessBase"]
[SourceQuality "1"]
[TimeControl "5400+30"]

1. d4 {[%emt 0:00:02]} d5 {[%emt 0:01:40]} 2. c4 {[%emt 0:00:04]} e6 {[%emt 0:00:36]} 3. Nc3 {[%emt 0:00:16]} c5 {[%emt 0:00:18]} 4. cxd5 {[%emt 0:00:04]} exd5 {[%emt 0:00:07]} 5. Nf3 {[%emt 0:00:10]} Nc6 {[%emt 0:00:10]} 6. g3 {[%emt 0:01:04]} Nf6 {[%emt 0:00:21]} 7. Bg2 {[%emt 0:00:05]} Be7 {[%emt 0:00:06]} 8. Bg5 {[%emt 0:10:24]} cxd4 {[%emt 0:08:17]} 9. Nxd4 {[%emt 0:00:31]} h6 {[%emt 0:00:03]} 10. Be3 {[%emt 0:03:01]} O-O {[%emt 0:00:26]} 11. O-O {[%emt 0:00:24]} Re8 {[%emt 0:03:21]} 12. Rc1 {[%emt 0:09:14]} Be6 {[%emt 0:13:18]} 13. Qa4 {[%emt 0:01:22]} Ne5 {[%emt 0:07:11]} 14. Nxe6 {[%emt 0:24:34]} fxe6 {[%emt 0:01:23]} 15. Bd4 {[%emt 0:08:31]} Nc6 {[%emt 0:04:03]} 16. Rfd1 {[%emt 0:05:14]} Nxd4 {[%emt 0:11:46]} 17. Qxd4 {[%emt 0:01:45]} b6 {[%emt 0:17:23]} 18. Qd3 {[%emt 0:01:23]} Bc5 {[%emt 0:03:57]} 19. e3 {[%emt 0:08:37]} Rc8 {[%emt 0:05:59]} 20. Ne2 {[%emt 0:02:26]} Ng4 {[%emt 0:01:28]} 21. b3 {[%emt 0:01:33]} Qf6 {[%emt 0:02:30]} 22. Rf1 {[%emt 0:02:10]} Ne5 {[%emt 0:03:08]} 23. Qb1 {[%emt 0:01:35]} Nf3+ {[%emt 0:00:53]} 24. Bxf3 {[%emt 0:00:11]} Qxf3 {[%emt 0:00:04]} 25. Qd3 {[%emt 0:02:50]} e5 {[%emt 0:02:52]} 26. Nc3 {[%emt 0:03:23]} Red8 {[%emt 0:03:27]} 27. Rfd1 {[%emt 0:02:56]} Ba3 {[%emt 0:04:09]} 28. Rb1 {[%emt 0:03:12]} d4 {[%emt 0:03:00]} 29. Qe4 {[%emt 0:00:32]} Qxe4 {[%emt 0:00:48]} 30. Nxe4 {[%emt 0:00:01]} Rc2 {[%emt 0:00:57]} 31. exd4 {[%emt 0:00:30]} Rxd4 {[%emt 0:00:45]} 32. Rxd4 {[%emt 0:00:21]} exd4 {[%emt 0:00:03]} 33. Rd1 {[%emt 0:00:20]} Bc5 {[%emt 0:01:55]} 34. Rd2 {[%emt 0:03:07]} Rc1+ {[%emt 0:00:12]} 35. Kg2 {[%emt 0:00:08]} Kf7 {[%emt 0:00:44]} 36. Nxc5 {[%emt 0:01:35]} bxc5 {[%emt 0:00:05]} 37. b4 {[%emt 0:00:01]} Ke6 {[%emt 0:00:13]} 38. bxc5 {[%emt 0:00:15]} Kd5 {[%emt 0:00:05]} 39. Kf3 {[%emt 0:00:27]} Rxc5 {[%emt 0:00:37]} 40. Ke2 {[%emt 0:01:13]} Rc3 {[%emt 0:00:13]} 41. Rb2 {[%emt 0:00:57]} Ke4 {[%emt 0:00:49]} 42. f4 {[%emt 0:03:36]} Ra3 {[%emt 0:01:14]} 43. Kd2 {[%emt 0:01:10]} h5 {[%emt 0:00:48]} 44. Ke2 {[%emt 0:00:32]} h4 {[%emt 0:00:30]} 45. Kd2 {[%emt 0:00:42]} hxg3 {[%emt 0:00:21]} 46. hxg3 {[%emt 0:00:03]} Rxg3 {[%emt 0:00:04]} 47. Rb7 {[%emt 0:00:05]} Rg2+ {[%emt 0:00:12]} 48. Kc1 {[%emt 0:00:09]} Rxa2 {[%emt 0:00:36]} 49. Rxg7 {[%emt 0:00:06]} Kxf4 {[%emt 0:00:23]} 50. Rd7 {[%emt 0:01:14]} Ke3 {[%emt 0:00:18]} 51. Re7+ {[%emt 0:00:11]} Kd3 {[%emt 0:00:09]} 52. Rd7 {[%emt 0:00:03]} a5 {[%emt 0:00:29]} 53. Ra7 {[%emt 0:00:24]} Rc2+ {[%emt 0:00:18]} 54. Kd1 {[%emt 0:00:27]} Rc5 {[%emt 0:00:37]} 55. Rh7 {[%emt 0:00:27]} Kc3 {[%emt 0:01:30]} 56. Kc1 {[%emt 0:00:17]} a4 {[%emt 0:00:18]} 57. Kb1 {[%emt 0:01:37]} d3 {[%emt 0:00:22]} 58. Rh3 {[%emt 0:00:43]} Rb5+ {[%emt 0:00:54]} 59. Ka2 {[%emt 0:00:48]} Kc2 {[%emt 0:00:18]} 60. Rh8 {[%emt 0:00:19]} Rc5 {[%emt 0:00:08]} 0-1